fUST/lending_fUST_20250731
["ID","MTS","AMOUNT","RATE_DAILY","PERIOD"]
[376347001,1753945841598,-1686.55,0.00021643,2]
[376347002,1753945841608,-460.0,0.00021643,2]
[376347003,1753945841618,-460.0,0.00021643,2]
[376347004,1753945841628,-941.51,0.00021643,2]
[376347005,1753945841637,-2642.31,0.00021643,2]
[376347006,1753945841647,-460.0,0.00021643,2]
[376347007,1753945841656,-460.0,0.00021643,2]
[376347008,1753945841666,-932.22,0.00021643,2]
[376347009,1753945841675,-1008.65,0.00021643,2]
[376347010,1753945841685,-460.0,0.00021643,2]
[376347011,1753945841694,-884.12,0.00021643,2]
[376347012,1753945841703,-632.32,0.00021643,2]
[376347013,1753945841713,-192.64869,0.00021643,2]
[376347014,1753945841722,-460.0,0.00021643,2]
[376347015,1753945841733,-460.0,0.00021643,2]
[376347016,1753945841742,-809.15,0.00021643,2]
[376347017,1753945841751,-460.0,0.00021643,2]
[376347018,1753945841767,-897.95,0.00021643,2]
[376347019,1753945841776,-151.0,0.00021643,2]
[376347020,1753945841785,-975.57,0.00021643,2]
[376347021,1753945841795,-460.0,0.00021643,2]
[376347022,1753945841804,-151.0,0.00021643,2]
[376347023,1753945841814,-915.87,0.00021643,2]
[376347024,1753945841825,-151.0,0.00021643,2]
[376347025,1753945841836,-676.7,0.00021643,2]
[376347026,1753945841845,-569.11,0.00021643,2]
[376347027,1753945841857,-460.0,0.00021643,2]
[376347028,1753945841868,-471.07,0.00021643,2]
[376347029,1753945841877,-2010.04,0.00021643,2]
[376347030,1753945841889,-460.0,0.00021655,2]
[376347031,1753945841899,-306.7897269,0.00021671,2]
[376347032,1753945841908,-151.0,0.000217,4]
[376347033,1753945841918,-500.0,0.00021711,2]
[376347034,1753945841927,-154.0,0.00021724,2]
[376347035,1753945841936,-154.63625444,0.00021724,2]
[376347036,1753945841946,-325.0,0.00021724,2]
[376347037,1753945841957,-325.0,0.00021724,2]
[376347038,1753945841967,-325.0,0.00021724,2]
[376347039,1753945841976,-178.21728792,0.00021724,2]
[376347040,1753945841986,-1755.0,0.00021724,2]
[376347041,1753945841996,-370.0,0.00021737,2]
[376347042,1753945842005,-209.293561,0.00021738,2]
[376347043,1753945842015,-756.3,0.00021743,4]
[376347044,1753945842024,-5352.80428277,0.00021812,2]
[376347045,1753945842034,-151.0,0.00021831,2]
[376347046,1753945842043,-151.0,0.00021831,2]
[376347047,1753945842052,-3965.88085676,0.00021831,6]
[376347048,1753945842062,-168.0,0.00021865,2]
[376347049,1753945842072,-168.0,0.00021868,2]
[376347050,1753945842082,-460.0,0.00021917,2]
[376347051,1753945842091,-411.08,0.00021917,2]
[376347052,1753945842101,-1123.12,0.00021917,2]
[376347053,1753945842113,-1686.55,0.00021917,2]
[376347054,1753945842124,-460.0,0.00021917,2]
[376347055,1753945842135,-941.51,0.00021917,2]
[376347056,1753945842147,-2642.31,0.00021917,2]
[376347057,1753945842156,-460.0,0.00021917,2]
[376347058,1753945842166,-460.0,0.00021917,2]
[376347059,1753945842175,-932.22,0.00021917,2]
[376347060,1753945842185,-1008.65,0.00021917,2]
[376347061,1753945842195,-460.0,0.00021917,2]
[376347062,1753945842204,-884.12,0.00021917,2]
[376347063,1753945842214,-632.32,0.00021917,2]
[376347064,1753945842223,-460.0,0.00021917,2]
[376347065,1753945842233,-809.15,0.00021917,2]
[376347066,1753945842242,-460.0,0.00021917,2]
[376347067,1753945842252,-897.95,0.00021917,2]
[376347068,1753945842261,-975.57,0.00021917,2]
[376347069,1753945842271,-460.0,0.00021917,2]
[376347070,1753945842281,-915.87,0.00021917,2]
[376347071,1753945842290,-676.7,0.00021917,2]
[376347072,1753945842300,-569.11,0.00021917,2]
[376347073,1753945842310,-500.0,0.00021917,2]
[376347074,1753945842320,-507.65964383,0.00021917,2]
[376347075,1753945842329,-460.0,0.00021917,2]
[376347076,1753945842339,-2010.04,0.00021917,2]
[376347077,1753945842348,-151.0,0.00021918,2]
[376347078,1753945842357,-151.0,0.00021918,2]
[376347079,1753945842368,-168.0,0.00021942,2]
[376347080,1753945842377,-500.0,0.00021973,2]
[376347081,1753945842387,-500.0,0.00021973,2]
[376347082,1753945842397,-150.0,0.00021973,2]
[376347083,1753945842407,-500.0,0.00021973,2]
[376347084,1753945842417,-500.0,0.00021973,2]
[376347085,1753945842426,-500.0,0.00021973,2]
[376347086,1753945842435,-500.0,0.00021973,2]
[376347087,1753945842445,-500.0,0.00021973,2]
[376347088,1753945842455,-151.0,0.00021973,7]
[376347089,1753945842464,-389.3604692,0.00021985,2]
[376347090,1753945842474,-2376.11060899,0.00022,2]
[376347091,1753945842484,-16670.49155905,0.00022,5]
[376347092,1753945842494,-594843.09356964,0.00022,2]
[376347093,1753945842503,-24298.7,0.00022,7]
[376347094,1753945842514,-76198.38,0.00022,2]
[376347095,1753945842524,-5986.13,0.00022,7]
[376347096,1753945842535,-178.11906093,0.00022,2]
[376347097,1753945842545,-2744.62,0.00022,7]
[376347098,1753945842555,-151.857537,0.00022,7]
[376347099,1753945842565,-151.0,0.00022,7]
[376347100,1753945842575,-160.0,0.00022,7]
[376347101,1753945842585,-153.664425,0.00022,7]
[376347103,1753945842596,-153.664425,0.00022,7]
[376347105,1753945842606,-151.0,0.00022,7]
[376347107,1753945842615,-151.0,0.00022,7]
[376347108,1753945842625,-151.0,0.00022,7]
[376347109,1753945842634,-1000.0,0.00022,2]
[376347110,1753945842644,-151.0,0.00022,7]
[376347111,1753945842655,-312.16666667,0.00022,7]
[376347112,1753945842664,-151.0,0.00022,7]
[376347113,1753945842674,-151.0,0.00022,7]
[376347115,1753945842683,-250.466637,0.00022,7]
[376347116,1753945842692,-151.0,0.00022,7]
[376347117,1753945842702,-189.119581,0.00022,7]
[376347118,1753945842711,-189.119581,0.00022,7]
[376347119,1753945842721,-189.119581,0.00022,7]
[376347120,1753945842730,-189.119581,0.00022,7]
[376347121,1753945842740,-151.0,0.00022,7]
[376347122,1753945842749,-151.0,0.00022,7]
[376347126,1753945842758,-151.0,0.00022,7]
[376347130,1753945842768,-151.0,0.00022,7]
[376347134,1753945842777,-12642.0599901,0.00022,7]
[376347136,1753945842787,-828.32,0.00022,2]
[376347138,1753945842796,-214.99831783,0.00022,7]
[376347140,1753945842805,-165.0,0.00022,2]
[376347141,1753945842815,-500.0,0.0002206,8]
[376347143,1753945842824,-151.0,0.0002206,7]
[376347145,1753945842834,-12642.0599901,0.0002206,7]
[376347148,1753945842843,-3965.88085676,0.00022072,6]
[376347151,1753945842853,-156.35794,0.0002208,15]
[376347154,1753945842862,-161.71762356,0.00022082,2]
[376347157,1753945842872,-151.0,0.000221,8]
[376347160,1753945842881,-370.0,0.00022129,2]
[376347163,1753945842891,-206.74848179,0.00022167,2]
[376347166,1753945842900,-756.3,0.00022179,4]
[376347168,1753945842910,-209.293561,0.0002218,10]
[376347171,1753945842920,-275.51,0.00022191,2]
[376347174,1753945842930,-1123.12,0.00022191,2]
[376347177,1753945842940,-1686.55,0.00022191,2]
[376347179,1753945842950,-178.54987404,0.00022191,2]
[376347182,1753945842959,-941.51,0.00022191,2]
[376347185,1753945842968,-2642.31,0.00022191,2]
[376347188,1753945842978,-460.0,0.00022191,2]
[376347191,1753945842988,-460.0,0.00022191,2]
[376347194,1753945842997,-932.22,0.00022191,2]
[376347197,1753945843007,-1008.65,0.00022191,2]
[376347199,1753945843016,-884.12,0.00022191,2]
[376347202,1753945843026,-632.32,0.00022191,2]
[376347205,1753945843035,-460.0,0.00022191,2]
[376347208,1753945843045,-809.15,0.00022191,2]
[376347211,1753945843055,-460.0,0.00022191,2]
[376347214,1753945843064,-897.95,0.00022191,2]
[376347216,1753945843073,-975.57,0.00022191,2]
[376347219,1753945843083,-346.06110409,0.00022191,2]
[376347222,1753945843093,-915.87,0.00022191,2]
[376347225,1753945843102,-676.7,0.00022191,2]
[376347228,1753945843112,-569.11,0.00022191,2]
[376347231,1753945843121,-460.0,0.00022191,2]
[376347234,1753945843130,-2010.04,0.00022191,2]
[376347237,1753945843142,-165.0,0.00022192,7]
[376347240,1753945843153,-278.08378581,0.00022203,2]
[376347243,1753945843162,-161.71762356,0.00022219,2]
[376347245,1753945843171,-154.0,0.00022261,3]
[376347248,1753945843182,-1756.0,0.00022261,3]
[376347251,1753945843191,-154.0,0.00022261,3]
[376347254,1753945843201,-1756.0,0.00022261,3]
[376347257,1753945843210,-154.0,0.00022261,3]
[376347259,1753945843221,-1756.0,0.00022261,3]
[376347262,1753945843230,-256.70304764,0.00022261,3]
[376347265,1753945843239,-1756.0,0.00022261,3]
[376347268,1753945843249,-1756.0,0.00022261,3]
[376347271,1753945843258,-1756.0,0.00022261,3]
[376347273,1753945843267,-1756.0,0.00022261,3]
[376347276,1753945843277,-1756.0,0.00022261,3]
[376347278,1753945843286,-1756.0,0.00022261,3]
[376347281,1753945843295,-196.32635102,0.00022261,3]
[376347284,1753945843305,-168.0,0.0002231,2]
[376347287,1753945843315,-3965.88085676,0.00022314,7]
[376347290,1753945843326,-312.16666667,0.0002232,7]
[376347293,1753945843335,-161.71762356,0.00022329,2]
[376347296,1753945843345,-370.0,0.00022356,2]
[376347298,1753945843354,-370.0,0.00022386,2]
[376347300,1753945843364,-3000.0,0.000224,2]
[376347303,1753945843374,-644.0,0.000224,2]
[376347305,1753945843384,-3000.0,0.0002241,2]
[376347307,1753945843393,-3000.0,0.0002242,2]
[376347309,1753945843403,-3000.0,0.0002243,2]
[376347311,1753945843414,-153.664425,0.0002243,7]
[376347312,1753945843423,-153.664425,0.0002243,7]
[376347314,1753945843433,-3000.0,0.0002244,2]
[376347316,1753945843442,-3000.0,0.0002245,2]
[376347318,1753945843451,-3000.0,0.0002246,2]
[376347320,1753945843461,-1123.12,0.00022465,2]
[376347322,1753945843472,-1686.55,0.00022465,2]
[376347324,1753945843481,-941.51,0.00022465,2]
[376347326,1753945843491,-2642.31,0.00022465,2]
[376347328,1753945843500,-460.0,0.00022465,2]
[376347330,1753945843510,-460.0,0.00022465,2]
[376347332,1753945843519,-932.22,0.00022465,2]
[376347334,1753945843528,-1008.65,0.00022465,2]
[376347336,1753945843537,-884.12,0.00022465,2]
[376347338,1753945843546,-632.32,0.00022465,2]
[376347339,1753945843555,-460.0,0.00022465,2]
[376347341,1753945843564,-809.15,0.00022465,2]
[376347343,1753945843574,-460.0,0.00022465,2]
[376347345,1753945843584,-897.95,0.00022465,2]
[376347347,1753945843593,-975.57,0.00022465,2]
[376347349,1753945843603,-915.87,0.00022465,2]
[376347351,1753945843613,-676.7,0.00022465,2]
[376347353,1753945843622,-569.11,0.00022465,2]
[376347355,1753945843632,-460.0,0.00022465,2]
[376347357,1753945843641,-2010.04,0.00022465,2]
[376347359,1753945843651,-161.71762356,0.00022466,2]
[376347361,1753945843660,-3553.265003,0.0002247,2]
[376347363,1753945843670,-370.0,0.0002247,2]
[376347365,1753945843679,-67735.77452236,0.0002249,7]
[376347367,1753945843689,-172.84398,0.0002249,7]
[376347369,1753945843699,-151.0,0.0002249,7]
[376347371,1753945843709,-151.0,0.0002249,7]
[376347373,1753945843718,-167.010569,0.0002249,7]
[376347375,1753945843728,-151.0,0.0002249,7]
[376347376,1753945843737,-279.737907,0.0002249,7]
[376347378,1753945843747,-151.0,0.0002249,7]
[376347380,1753945843757,-189.119581,0.0002249,7]
[376347382,1753945843767,-189.119581,0.0002249,7]
[376347384,1753945843777,-249.822441,0.0002249,7]
[376347386,1753945843786,-151.0,0.0002249,7]
[376347388,1753945843796,-1000.0,0.000225,2]
[376347390,1753945843806,-312.16666667,0.000225,7]
[376347392,1753945843817,-1000.0,0.00022521,2]
[376347394,1753945843826,-1000.0,0.00022521,2]
[376347396,1753945843836,-300.0,0.00022521,2]
[376347398,1753945843845,-1000.0,0.00022521,2]
[376347399,1753945843855,-696.68359494,0.00022521,2]
[376347401,1753945843864,-5000.0,0.00022534,2]
[376347403,1753945843873,-3965.88085676,0.00022555,7]
[376347404,1753945843883,-828.32,0.00022567,2]
[376347405,1753945843892,-161.71762356,0.00022603,2]
[376347406,1753945843902,-245.090906,0.00022603,2]
[376347407,1753945843912,-756.3,0.00022615,4]
[376347408,1753945843922,-153.664425,0.00022654,7]
[376347409,1753945843931,-153.664425,0.00022654,7]
[376347410,1753945843941,-168.0,0.00022659,2]
[376347411,1753945843950,-155.2057358,0.00022676,2]
[376347412,1753945843960,-3926.43878887,0.000227,3]
[376347413,1753945843969,-500.0,0.0002272,2]
[376347414,1753945843979,-1123.12,0.00022739,2]
[376347415,1753945843988,-1686.55,0.00022739,2]
[376347416,1753945843998,-941.51,0.00022739,2]
[376347417,1753945844007,-2642.31,0.00022739,2]
[376347418,1753945844017,-460.0,0.00022739,2]
[376347419,1753945844026,-452.83743432,0.00022739,2]
[376347420,1753945844036,-932.22,0.00022739,2]
[376347421,1753945844045,-1008.65,0.00022739,2]
[376347422,1753945844055,-884.12,0.00022739,2]
[376347423,1753945844165,-632.32,0.00022739,2]
[376347425,1753945844175,-460.0,0.00022739,2]
[376347427,1753945844184,-809.15,0.00022739,2]
[376347429,1753945844194,-460.0,0.00022739,2]
[376347431,1753945844203,-897.95,0.00022739,2]
[376347433,1753945844215,-975.57,0.00022739,2]
[376347435,1753945844224,-915.87,0.00022739,2]
[376347437,1753945844236,-676.7,0.00022739,2]
[376347439,1753945844245,-569.11,0.00022739,2]
[376347442,1753945844255,-460.0,0.00022739,2]
[376347444,1753945844264,-2010.04,0.00022739,2]
[376347446,1753945844274,-161.71762356,0.0002274,2]
[376347447,1753945844283,-3965.88085676,0.00022797,7]
[376347450,1753945844293,-168.0,0.00022807,2]
[376347452,1753945844302,-1353.908909,0.0002284,5]
[376347454,1753945844312,-161.71762356,0.00022849,2]
[376347456,1753945844321,-1000.0,0.0002286,5]
[376347458,1753945844330,-1000.0,0.0002288,5]
[376347460,1753945844339,-209.293561,0.00022899,2]
[376347462,1753945844348,-209.293561,0.000229,7]
[376347464,1753945844357,-1000.0,0.000229,5]
[376347466,1753945844366,-1000.0,0.0002292,5]
[376347468,1753945844376,-1000.0,0.0002294,5]
[376347469,1753945844385,-1000.0,0.0002296,5]
[376347472,1753945844395,-1000.0,0.0002298,5]
[376347473,1753945844404,-161.71762356,0.00022986,2]
[376347475,1753945844413,-7385.94972858,0.00023,15]
[376347478,1753945844423,-327.63289103,0.00023,2]
[376347479,1753945844432,-27962.35464201,0.00023,2]
[376347482,1753945844442,-160.0,0.00023,3]
[376347484,1753945844451,-160.0,0.00023,3]
[376347486,1753945844460,-160.0,0.00023,3]
[376347487,1753945844471,-160.0,0.00023,3]
[376347489,1753945844480,-160.0,0.00023,3]
[376347491,1753945844490,-160.0,0.00023,3]
[376347494,1753945844499,-160.0,0.00023,2]
[376347496,1753945844509,-841.37753757,0.00023,3]
[376347498,1753945844518,-209.293561,0.00023,15]
[376347500,1753945844528,-209.293561,0.00023,4]
[376347502,1753945844538,-1000.0,0.00023,5]
[376347504,1753945844547,-160.0,0.00023,3]
[376347506,1753945844556,-160.95346938,0.00023,5]
[376347508,1753945844565,-526.848153,0.00023,3]
[376347509,1753945844574,-526.848153,0.00023,3]
[376347511,1753945844583,-170.90716796,0.00023,3]
[376347513,1753945844593,-1000.0,0.00023,2]
[376347515,1753945844602,-856.2697,0.00023,2]
[376347517,1753945844611,-150.0,0.00023,10]
[376347519,1753945844620,-160.0,0.00023,3]
[376347521,1753945844631,-160.0,0.00023,3]
[376347523,1753945844640,-312.16666667,0.00023,3]
[376347525,1753945844649,-150.232838,0.00023,2]
[376347527,1753945844659,-1153.8,0.00023,2]
[376347529,1753945844669,-12642.0599901,0.00023,3]
[376347531,1753945844679,-216.18812866,0.00023,3]
[376347533,1753945844688,-216.18812866,0.00023,3]
[376347535,1753945844698,-151.0,0.00023013,7]
[376347537,1753945844706,-151.0,0.00023013,7]
[376347539,1753945844716,-167.010569,0.00023013,7]
[376347541,1753945844726,-1123.12,0.00023013,2]
[376347543,1753945844736,-1686.55,0.00023013,2]
[376347545,1753945844744,-941.51,0.00023013,2]
[376347547,1753945844753,-2642.31,0.00023013,2]
[376347549,1753945844763,-460.0,0.00023013,2]
[376347551,1753945844773,-932.22,0.00023013,2]
[376347553,1753945844783,-151.0,0.00023013,7]
[376347555,1753945844792,-1008.65,0.00023013,2]
[376347557,1753945844801,-884.12,0.00023013,2]
[376347559,1753945844811,-632.32,0.00023013,2]
[376347561,1753945844820,-280.67505558,0.00023013,2]
[376347563,1753945844829,-809.15,0.00023013,2]
[376347565,1753945844838,-460.0,0.00023013,2]
[376347567,1753945844848,-897.95,0.00023013,2]
[376347569,1753945844857,-975.57,0.00023013,2]
[376347571,1753945844866,-915.87,0.00023013,2]
[376347573,1753945844876,-676.7,0.00023013,2]
[376347575,1753945844886,-569.11,0.00023013,2]
[376347577,1753945844895,-460.0,0.00023013,2]
[376347579,1753945844904,-2010.04,0.00023013,2]
[376347581,1753945844914,-165.0,0.00023014,7]
[376347583,1753945844923,-3965.88085676,0.00023038,8]
[376347585,1753945844932,-756.3,0.0002305,5]
[376347587,1753945844942,-1500.0,0.00023068,2]
[376347589,1753945844951,-179.84993846,0.00023068,2]
[376347591,1753945844960,-1500.0,0.00023068,2]
[376347593,1753945844969,-161.71762356,0.00023123,2]
[376347595,1753945844979,-828.32,0.00023133,2]
[376347597,1753945844988,-168.0,0.00023179,2]
[376347599,1753945844997,-76198.38,0.000232,2]
[376347601,1753945845006,-5986.13,0.000232,7]
[376347603,1753945845015,-2744.62,0.000232,7]
[376347605,1753945845024,-153.664425,0.000232,7]
[376347606,1753945845033,-153.664425,0.000232,7]
[376347608,1753945845044,-151.0,0.000232,7]
[376347610,1753945845053,-189.119581,0.000232,7]
[376347613,1753945845063,-189.119581,0.000232,7]
[376347614,1753945845073,-151.0,0.000232,7]
[376347617,1753945845083,-4513.07101448,0.00023232,2]
[376347618,1753945845093,-206.74848179,0.00023234,2]
[376347620,1753945845102,-500.0,0.00023256,2]
[376347622,1753945845111,-209.293561,0.0002326,10]
[376347625,1753945845121,-161.71762356,0.0002326,2]
[376347626,1753945845131,-500.0,0.00023277,2]
[376347629,1753945845144,-3965.88085676,0.00023279,8]
[376347630,1753945845153,-500.0,0.00023287,2]
[376347632,1753945845163,-151.0,0.00023287,7]
[376347634,1753945845172,-151.0,0.00023287,7]
[376347636,1753945845182,-167.010569,0.00023287,7]
[376347638,1753945845191,-1123.12,0.00023287,2]
[376347640,1753945845202,-1686.55,0.00023287,2]
[376347642,1753945845212,-941.51,0.00023287,2]
[376347644,1753945845223,-2642.31,0.00023287,2]
[376347647,1753945845233,-460.0,0.00023287,2]
[376347649,1753945845243,-932.22,0.00023287,2]
[376347651,1753945845252,-151.0,0.00023287,7]
[376347653,1753945845263,-1008.65,0.00023287,2]
[376347654,1753945845272,-884.12,0.00023287,2]
[376347656,1753945845282,-632.32,0.00023287,2]
[376347658,1753945845291,-809.15,0.00023287,2]
[376347660,1753945845301,-460.0,0.00023287,2]
[376347663,1753945845311,-897.95,0.00023287,2]
[376347664,1753945845320,-975.57,0.00023287,2]
[376347666,1753945845331,-915.87,0.00023287,2]
[376347668,1753945845340,-676.7,0.00023287,2]
[376347670,1753945845351,-569.11,0.00023287,2]
[376347672,1753945845361,-460.0,0.00023287,2]
[376347674,1753945845372,-2010.04,0.00023287,2]
[376347676,1753945845383,-151.0,0.00023288,7]
[376347679,1753945845393,-245.0,0.00023288,7]
[376347681,1753945845403,-24298.7,0.000233,7]
[376347683,1753945845413,-5891.5,0.000234,2]
[376347685,1753945845422,-200.0,0.0002345,15]
[376347687,1753945845432,-200.0,0.0002345,15]
[376347689,1753945845442,-200.0,0.0002345,15]
[376347690,1753945845452,-200.0,0.0002345,15]
[376347693,1753945845463,-756.3,0.00023486,5]
[376347694,1753945845474,-3965.88085676,0.00023521,9]
[376347696,1753945845484,-289.06,0.00023561,2]
[376347698,1753945845494,-289.06,0.00023561,2]
[376347701,1753945845505,-289.06,0.00023561,2]
[376347704,1753945845514,-289.06,0.00023561,2]
[376347705,1753945845524,-289.06,0.00023561,2]
[376347708,1753945845534,-289.06,0.00023561,2]
[376347709,1753945845543,-289.06,0.00023561,2]
[376347712,1753945845553,-289.06,0.00023561,2]
[376347713,1753945845563,-289.06,0.00023561,2]
[376347715,1753945845573,-289.06,0.00023561,2]
[376347717,1753945845583,-289.06,0.00023561,2]
[376347720,1753945845592,-289.06,0.00023561,2]
[376347722,1753945845602,-289.06,0.00023561,2]
[376347724,1753945845612,-289.06,0.00023561,2]
[376347726,1753945845621,-289.06,0.00023561,2]
[376347728,1753945845630,-289.06,0.00023561,2]
[376347730,1753945845640,-289.06,0.00023561,2]
[376347732,1753945845649,-1123.12,0.00023561,2]
[376347734,1753945845660,-1686.55,0.00023561,2]
[376347736,1753945845669,-941.51,0.00023561,2]
[376347738,1753945845678,-2642.31,0.00023561,2]
[376347739,1753945845688,-460.0,0.00023561,2]
[376347741,1753945845697,-932.22,0.00023561,2]
[376347744,1753945845708,-1008.65,0.00023561,2]
[376347746,1753945845718,-884.12,0.00023561,2]
[376347748,1753945845727,-632.32,0.00023561,2]
[376347750,1753945845736,-809.15,0.00023561,2]
[376347752,1753945845745,-460.0,0.00023561,2]
[376347754,1753945845755,-897.95,0.00023561,2]
[376347756,1753945845764,-975.57,0.00023561,2]
[376347757,1753945845773,-915.87,0.00023561,2]
[376347759,1753945845783,-676.7,0.00023561,2]
[376347762,1753945845792,-569.11,0.00023561,2]
[376347764,1753945845802,-460.0,0.00023561,2]
[376347766,1753945845811,-2010.04,0.00023561,2]
[376347769,1753945845822,-500.0,0.00023578,2]
[376347771,1753945845831,-2146.0,0.00023602,2]
[376347773,1753945845841,-970.0,0.00023602,2]
[376347775,1753945845850,-635.0,0.00023602,2]
[376347777,1753945845860,-407.0,0.00023602,2]
[376347779,1753945845869,-209.1572519,0.00023616,2]
[376347781,1753945845879,-1007.39071748,0.00023616,2]
[376347783,1753945845888,-2887.91134048,0.000237,30]
[376347785,1753945845898,-828.32,0.000237,2]
[376347787,1753945845907,-4000.0,0.00023724,4]
[376347789,1753945845917,-3965.88085676,0.00023762,9]
[376347791,1753945845926,-2192.45,0.00023793,7]
[376347793,1753945845936,-3049.51841797,0.000238,5]
[376347795,1753945845946,-209.293561,0.00023808,7]
[376347797,1753945845956,-289.06,0.00023835,2]
[376347799,1753945845966,-153.664425,0.00023835,7]
[376347801,1753945845976,-153.664425,0.00023835,7]
[376347803,1753945845986,-151.0,0.00023835,7]
[376347805,1753945845995,-1123.12,0.00023835,2]
[376347807,1753945846005,-1686.55,0.00023835,2]
[376347809,1753945846015,-941.51,0.00023835,2]
[376347811,1753945846024,-2642.31,0.00023835,2]
[376347813,1753945846033,-312.08072194,0.00023835,2]
[376347815,1753945846043,-932.22,0.00023835,2]
[376347817,1753945846053,-1008.65,0.00023835,2]
[376347819,1753945846062,-884.12,0.00023835,2]
[376347821,1753945846072,-189.119581,0.00023835,7]
[376347823,1753945846081,-632.32,0.00023835,2]
[376347825,1753945846090,-189.119581,0.00023835,7]
[376347827,1753945846099,-809.15,0.00023835,2]
[376347829,1753945846107,-460.0,0.00023835,2]
[376347831,1753945846117,-897.95,0.00023835,2]
[376347833,1753945846127,-975.57,0.00023835,2]
[376347835,1753945846136,-915.87,0.00023835,2]
[376347837,1753945846150,-676.7,0.00023835,2]
[376347839,1753945846159,-569.11,0.00023835,2]
[376347841,1753945846167,-195.54632253,0.00023835,2]
[376347843,1753945846177,-2010.04,0.00023835,2]
[376347845,1753945846188,-500.0,0.00023855,2]
[376347847,1753945846197,-209.293561,0.00023875,15]
[376347849,1753945846206,-209.293561,0.00023878,4]
[376347851,1753945846215,-2192.45,0.00023893,7]
[376347853,1753945846227,-152.757808,0.00023893,7]
[376347855,1753945846236,-2770.26,0.00023916,30]
[376347857,1753945846245,-756.3,0.00023921,5]
[376347859,1753945846254,-2192.45,0.00023993,7]
[376347861,1753945846263,-4818.95068137,0.00024,7]
[376347863,1753945846273,-6470.49214941,0.00024,30]
[376347865,1753945846283,-160.0,0.00024,30]
[376347867,1753945846293,-160.0,0.00024,7]
[376347869,1753945846302,-160.0,0.00024,7]
[376347871,1753945846312,-160.0,0.00024,7]
[376347873,1753945846321,-160.0,0.00024,7]
[376347875,1753945846330,-160.0,0.00024,7]
[376347877,1753945846339,-160.0,0.00024,7]
[376347879,1753945846349,-841.37753757,0.00024,7]
[376347881,1753945846361,-151.0,0.00024,7]
[376347883,1753945846370,-151.0,0.00024,7]
[376347885,1753945846379,-167.010569,0.00024,7]
[376347887,1753945846388,-526.848153,0.00024,7]
[376347889,1753945846398,-160.0,0.00024,7]
[376347891,1753945846407,-312.16666667,0.00024,30]
[376347893,1753945846417,-151.0,0.00024,7]
[376347895,1753945846426,-12642.0599901,0.00024,30]
[376347897,1753945846435,-216.18812866,0.00024,7]
[376347899,1753945846444,-214.99831783,0.00024,30]
[376347901,1753945846453,-3965.88085676,0.00024003,10]
[376347903,1753945846463,-209.293561,0.0002406,2]
[376347905,1753945846473,-2192.45,0.00024093,7]
[376347907,1753945846483,-500.0,0.00024104,2]
[376347909,1753945846492,-500.0,0.00024108,2]
[376347911,1753945846501,-289.06,0.00024109,2]
[376347913,1753945846511,-1123.12,0.00024109,2]
[376347915,1753945846520,-1686.55,0.00024109,2]